[Event "Titled Tuesday Blitz February 28 Late 2023"]
[White "Remolar Gallen, Jose"]
[Black "Lucassen, Mickey"]
[WhiteFideId "2215187"]
[BlackFideId "12919110"]
[WhiteElo "2223"]
[BlackElo "2362"]
[Result "1/2-1/2"]
[Round "05"]
[TimeControl "180+2"]
[Date "2023.02.28"]
[WhiteClock "0:00:14"]
[BlackClock "0:00:20"]

1. e4 {[%clk 0:02:56]}  c5 {[%clk 0:02:57]} 2. Nf3 {[%clk 0:02:56]}  d6 {[%clk 0:02:58]} 3. d4 {[%clk 0:02:56]}  cxd4 {[%clk 0:02:59]} 4. Nxd4 {[%clk 0:02:57]}  Nf6 {[%clk 0:02:59]} 5. Nc3 {[%clk 0:02:57]}  Nc6 {[%clk 0:03:00]} 6. Bg5 {[%clk 0:02:55]}  e6 {[%clk 0:02:59]} 7. Qd2 {[%clk 0:02:53]}  a6 {[%clk 0:02:58]} 8. O-O-O {[%clk 0:02:46]}  Bd7 {[%clk 0:02:58]} 9. f3 {[%clk 0:02:39]}  b5 {[%clk 0:02:56]} 10. Kb1 {[%clk 0:02:28]}  Be7 {[%clk 0:02:54]} 11. h4 {[%clk 0:02:27]}  h6 {[%clk 0:02:51]} 12. Be3 {[%clk 0:02:25]}  Ne5 {[%clk 0:02:48]} 13. g4 {[%clk 0:02:23]}  Rc8 {[%clk 0:02:41]} 14. a3 {[%clk 0:02:12]}  Qa5 {[%clk 0:02:24]} 15. Nd5 {[%clk 0:01:22]}  Qxd2 {[%clk 0:02:17]} 16. Nxf6+ {[%clk 0:01:22]}  Bxf6 {[%clk 0:02:16]} 17. Rxd2 {[%clk 0:01:21]}  Nc4 {[%clk 0:02:15]} 18. Bxc4 {[%clk 0:01:20]}  Rxc4 {[%clk 0:02:15]} 19. Rhd1 {[%clk 0:01:17]}  Bxh4 {[%clk 0:02:08]} 20. Nb3 {[%clk 0:01:06]}  Be7 {[%clk 0:02:05]} 21. Na5 {[%clk 0:01:04]}  Rc7 {[%clk 0:01:40]} 22. Bb6 {[%clk 0:01:02]}  Rc8 {[%clk 0:01:36]} 23. Nb7 {[%clk 0:00:39]}  Rc6 {[%clk 0:01:08]} 24. Nxd6+ {[%clk 0:00:32]}  Bxd6 {[%clk 0:01:03]} 25. Rxd6 {[%clk 0:00:33]}  Rxd6 {[%clk 0:01:00]} 26. Rxd6 {[%clk 0:00:34]}  Ke7 {[%clk 0:00:57]} 27. Bc5 {[%clk 0:00:34]}  Rc8 {[%clk 0:00:57]} 28. b4 {[%clk 0:00:32]}  Ke8 {[%clk 0:00:56]} 29. Rxa6 {[%clk 0:00:30]}  f6 {[%clk 0:00:50]} 30. Kb2 {[%clk 0:00:26]}  Bc6 {[%clk 0:00:44]} 31. Ra7 {[%clk 0:00:25]}  Bd7 {[%clk 0:00:44]} 32. Kc3 {[%clk 0:00:19]}  Rd8 {[%clk 0:00:30]} 33. Rc7 {[%clk 0:00:11]}  Ra8 {[%clk 0:00:25]} 34. Kb3 {[%clk 0:00:11]}  Kd8 {[%clk 0:00:23]} 35. Bb6 {[%clk 0:00:10]}  Ke8 {[%clk 0:00:23]} 36. f4 {[%clk 0:00:06]}  Ra6 {[%clk 0:00:21]} 37. Bc5 {[%clk 0:00:06]}  Kd8 {[%clk 0:00:18]} 38. Rb7 {[%clk 0:00:05]}  Kc8 {[%clk 0:00:17]} 39. Ra7 {[%clk 0:00:05]}  Rxa7 {[%clk 0:00:17]} 40. Bxa7 {[%clk 0:00:06]}  Kb7 {[%clk 0:00:18]} 41. Bc5 {[%clk 0:00:06]}  Bc6 {[%clk 0:00:19]} 42. Bf8 {[%clk 0:00:04]}  g5 {[%clk 0:00:14]} 43. fxg5 {[%clk 0:00:02]}  hxg5 {[%clk 0:00:13]} 44. Bg7 {[%clk 0:00:02]}  Bxe4 {[%clk 0:00:13]} 45. Bxf6 {[%clk 0:00:03]}  Bf3 {[%clk 0:00:13]} 46. Bxg5 {[%clk 0:00:03]}  Bxg4 {[%clk 0:00:14]} 47. Kc3 {[%clk 0:00:04]}  Bf3 {[%clk 0:00:14]} 48. Kd4 {[%clk 0:00:04]}  Bd5 {[%clk 0:00:15]} 49. Kc5 {[%clk 0:00:03]}  Bc4 {[%clk 0:00:15]} 50. a4 {[%clk 0:00:03]}  Ka6 {[%clk 0:00:16]} 51. a5 {[%clk 0:00:02]}  Ba2 {[%clk 0:00:15]} 52. Bf4 {[%clk 0:00:03]}  Bc4 {[%clk 0:00:15]} 53. Bc7 {[%clk 0:00:03]}  Bd5 {[%clk 0:00:15]} 54. Kd6 {[%clk 0:00:02]}  Bc4 {[%clk 0:00:15]} 55. Bb6 {[%clk 0:00:03]}  Ba2 {[%clk 0:00:14]} 56. Bc5 {[%clk 0:00:04]}  Bc4 {[%clk 0:00:15]} 57. Be3 {[%clk 0:00:04]}  Kb7 {[%clk 0:00:15]} 58. Ke5 {[%clk 0:00:05]}  Kc6 {[%clk 0:00:15]} 59. Kd4 {[%clk 0:00:06]}  Kb7 {[%clk 0:00:15]} 60. Kc5 {[%clk 0:00:06]}  Ka6 {[%clk 0:00:15]} 61. Kc6 {[%clk 0:00:07]}  Bd5+ {[%clk 0:00:16]} 62. Kd6 {[%clk 0:00:07]}  Ba2 {[%clk 0:00:16]} 63. Bf2 {[%clk 0:00:07]}  Bc4 {[%clk 0:00:17]} 64. Be1 {[%clk 0:00:08]}  Ba2 {[%clk 0:00:17]} 65. Kc5 {[%clk 0:00:08]}  Bc4 {[%clk 0:00:17]} 66. Kc6 {[%clk 0:00:09]}  Ba2 {[%clk 0:00:17]} 67. Kd6 {[%clk 0:00:09]}  Bc4 {[%clk 0:00:17]} 68. Bd2 {[%clk 0:00:09]}  Ba2 {[%clk 0:00:18]} 69. Ke5 {[%clk 0:00:08]}  Bc4 {[%clk 0:00:18]} 70. Kd4 {[%clk 0:00:09]}  Ba2 {[%clk 0:00:18]} 71. Kc3 {[%clk 0:00:09]}  Bc4 {[%clk 0:00:19]} 72. Kb2 {[%clk 0:00:10]}  Bd5 {[%clk 0:00:19]} 73. Ka3 {[%clk 0:00:11]}  Bc4 {[%clk 0:00:19]} 74. Kb2 {[%clk 0:00:12]}  Bd5 {[%clk 0:00:19]} 75. Kc3 {[%clk 0:00:12]}  Bc4 {[%clk 0:00:20]} 76. Kd4 {[%clk 0:00:13]}  Ba2 {[%clk 0:00:20]} 77. Be3 {[%clk 0:00:13]}  Bd5 {[%clk 0:00:20]} 78. c3 {[%clk 0:00:14]}  Bc4 {[%clk 0:00:20]} 79. Kc5 {[%clk 0:00:14]}  Bd5 {[%clk 0:00:20]} 80. Kd6 {[%clk 0:00:14]}  Bc4 {[%clk 0:00:20]} 81. Kc5 {[%clk 0:00:12]}  Bd5 {[%clk 0:00:20]} 82. Kd6 {[%clk 0:00:13]}  Bc4 {[%clk 0:00:20]} 83. Kc5 {[%clk 0:00:14]} 1/2-1/2


[Site "https://www.chess.com"]

[Event "Titled Tuesday Blitz February 28 Late 2023"]
[White "Kostiukov, Alexandr"]
[Black "Taboas Rodriguez, Daniel"]
[WhiteFideId "14108100"]
[BlackFideId "2208466"]
[WhiteElo "2202"]
[BlackElo "2365"]
[Result "0-1"]
[Round "05"]
[TimeControl "180+2"]
[Date "2023.02.28"]
[WhiteClock "0:00:03"]
[BlackClock "0:00:32"]

1. g3 {[%clk 0:02:55]}  Nf6 {[%clk 0:02:58]} 2. Bg2 {[%clk 0:02:55]}  g6 {[%clk 0:02:58]} 3. c4 {[%clk 0:02:55]}  Bg7 {[%clk 0:02:58]} 4. Nf3 {[%clk 0:02:56]}  O-O {[%clk 0:02:59]} 5. O-O {[%clk 0:02:56]}  b6 {[%clk 0:03:00]} 6. d4 {[%clk 0:02:54]}  Bb7 {[%clk 0:02:59]} 7. Nc3 {[%clk 0:02:54]}  Ne4 {[%clk 0:02:59]} 8. Bd2 {[%clk 0:02:44]}  e6 {[%clk 0:02:58]} 9. Nxe4 {[%clk 0:02:41]}  Bxe4 {[%clk 0:02:57]} 10. Bb4 {[%clk 0:02:23]}  Re8 {[%clk 0:02:48]} 11. Bc3 {[%clk 0:02:09]}  d5 {[%clk 0:02:45]} 12. cxd5 {[%clk 0:01:57]}  Qxd5 {[%clk 0:02:44]} 13. Ne1 {[%clk 0:01:53]}  Bxg2 {[%clk 0:02:42]} 14. Nxg2 {[%clk 0:01:54]}  Nc6 {[%clk 0:02:38]} 15. e3 {[%clk 0:01:45]}  Rad8 {[%clk 0:02:29]} 16. Nf4 {[%clk 0:01:29]}  Qd6 {[%clk 0:02:28]} 17. Qa4 {[%clk 0:01:26]}  e5 {[%clk 0:02:12]} 18. dxe5 {[%clk 0:01:20]}  Nxe5 {[%clk 0:02:13]} 19. Bxe5 {[%clk 0:01:14]}  Bxe5 {[%clk 0:02:10]} 20. Rfd1 {[%clk 0:01:01]}  b5 {[%clk 0:01:52]} 21. Qb3 {[%clk 0:00:38]}  Qa6 {[%clk 0:01:38]} 22. Nd5 {[%clk 0:00:33]}  c6 {[%clk 0:01:29]} 23. Nb4 {[%clk 0:00:29]}  Qb7 {[%clk 0:01:25]} 24. Rac1 {[%clk 0:00:23]}  Rxd1+ {[%clk 0:01:24]} 25. Rxd1 {[%clk 0:00:24]}  c5 {[%clk 0:01:23]} 26. Nd5 {[%clk 0:00:24]}  c4 {[%clk 0:01:22]} 27. Qc2 {[%clk 0:00:23]}  Rd8 {[%clk 0:01:18]} 28. Qe4 {[%clk 0:00:21]}  Qb8 {[%clk 0:01:12]} 29. Ne7+ {[%clk 0:00:19]}  Kf8 {[%clk 0:01:10]} 30. Rxd8+ {[%clk 0:00:16]}  Qxd8 {[%clk 0:01:10]} 31. Nc6 {[%clk 0:00:16]}  Qd1+ {[%clk 0:01:09]} 32. Kg2 {[%clk 0:00:17]}  Bxb2 {[%clk 0:01:09]} 33. Qe7+ {[%clk 0:00:14]}  Kg7 {[%clk 0:01:08]} 34. Nxa7 {[%clk 0:00:14]}  Bf6 {[%clk 0:00:58]} 35. Qb7 {[%clk 0:00:13]}  Qb1 {[%clk 0:00:53]} 36. Qxb5 {[%clk 0:00:12]}  Qxa2 {[%clk 0:00:53]} 37. Nc6 {[%clk 0:00:09]}  c3 {[%clk 0:00:52]} 38. Qc5 {[%clk 0:00:09]}  Qe6 {[%clk 0:00:48]} 39. Nd4 {[%clk 0:00:07]}  Bxd4 {[%clk 0:00:44]} 40. exd4 {[%clk 0:00:08]}  Qe4+ {[%clk 0:00:40]} 41. Kg1 {[%clk 0:00:05]}  c2 {[%clk 0:00:40]} 42. d5 {[%clk 0:00:01]}  Qe1+ {[%clk 0:00:37]} 43. Kg2 {[%clk 0:00:02]}  c1=Q {[%clk 0:00:36]} 44. Qd4+ {[%clk 0:00:02]}  Kg8 {[%clk 0:00:35]} 45. d6 {[%clk 0:00:03]}  Qcd1 {[%clk 0:00:32]} 0-1


[Site "https://www.chess.com"]

[Event "Titled Tuesday Blitz February 28 Late 2023"]
[White "Lopez Del Alamo, Antonio"]
[Black "Ehlvest, Jaan"]
[WhiteFideId "2227339"]
[BlackFideId "4500016"]
[WhiteElo "2175"]
[BlackElo "2442"]
[Result "1-0"]
[Round "05"]
[TimeControl "180+2"]
[Date "2023.02.28"]
[WhiteClock "0:00:39"]
[BlackClock "0:01:07"]

1. e4 {[%clk 0:03:00]}  g6 {[%clk 0:02:58]} 2. d4 {[%clk 0:02:59]}  Bg7 {[%clk 0:02:59]} 3. c4 {[%clk 0:02:58]}  d6 {[%clk 0:02:58]} 4. Nc3 {[%clk 0:02:57]}  e5 {[%clk 0:02:57]} 5. d5 {[%clk 0:02:56]}  f5 {[%clk 0:02:56]} 6. exf5 {[%clk 0:02:37]}  gxf5 {[%clk 0:02:56]} 7. Qh5+ {[%clk 0:02:36]}  Kf8 {[%clk 0:02:55]} 8. Bg5 {[%clk 0:02:32]}  Nf6 {[%clk 0:02:53]} 9. Qh4 {[%clk 0:02:24]}  Nbd7 {[%clk 0:02:42]} 10. O-O-O {[%clk 0:02:20]}  a6 {[%clk 0:02:40]} 11. Kb1 {[%clk 0:02:17]}  b5 {[%clk 0:02:39]} 12. cxb5 {[%clk 0:02:02]}  axb5 {[%clk 0:02:35]} 13. Bxb5 {[%clk 0:02:01]}  h6 {[%clk 0:02:22]} 14. Bc1 {[%clk 0:01:58]}  Nc5 {[%clk 0:02:07]} 15. Nge2 {[%clk 0:01:54]}  Bd7 {[%clk 0:01:46]} 16. Bc4 {[%clk 0:01:48]}  Qb8 {[%clk 0:01:42]} 17. f3 {[%clk 0:01:43]}  Qb4 {[%clk 0:01:41]} 18. g3 {[%clk 0:01:22]}  e4 {[%clk 0:01:38]} 19. Bb3 {[%clk 0:01:06]}  Nxb3 {[%clk 0:01:33]} 20. axb3 {[%clk 0:01:05]}  Qxb3 {[%clk 0:01:32]} 21. Nd4 {[%clk 0:00:58]}  Qc4 {[%clk 0:01:18]} 22. Rhf1 {[%clk 0:00:42]}  e3 {[%clk 0:01:07]} 23. Ne6+ {[%clk 0:00:39]} 1-0


[Site "https://www.chess.com"]

[Event "Titled Tuesday Blitz February 28 Late 2023"]
[White "Roberson, Peter T"]
[Black "Zampronha, Wladimir Camilo"]
[WhiteFideId "412384"]
[BlackFideId "2103087"]
[WhiteElo "2346"]
[BlackElo "2176"]
[Result "1/2-1/2"]
[Round "05"]
[TimeControl "180+2"]
[Date "2023.02.28"]
[WhiteClock "0:00:03"]
[BlackClock "0:00:10"]

1. d4 {[%clk 0:03:00]}  Nf6 {[%clk 0:02:59]} 2. Bf4 {[%clk 0:02:56]}  c5 {[%clk 0:02:56]} 3. e3 {[%clk 0:02:49]}  d5 {[%clk 0:02:56]} 4. Nd2 {[%clk 0:02:46]}  Nc6 {[%clk 0:02:57]} 5. Ngf3 {[%clk 0:02:45]}  e6 {[%clk 0:02:56]} 6. Bd3 {[%clk 0:02:42]}  Bd6 {[%clk 0:02:55]} 7. Bg3 {[%clk 0:02:42]}  O-O {[%clk 0:02:54]} 8. c3 {[%clk 0:02:37]}  Qe7 {[%clk 0:02:54]} 9. Ne5 {[%clk 0:02:35]}  Nd7 {[%clk 0:02:53]} 10. Nxd7 {[%clk 0:02:33]}  Bxd7 {[%clk 0:02:53]} 11. Bxd6 {[%clk 0:02:32]}  Qxd6 {[%clk 0:02:52]} 12. dxc5 {[%clk 0:02:32]}  Qxc5 {[%clk 0:02:52]} 13. Bxh7+ {[%clk 0:02:30]}  Kxh7 {[%clk 0:02:53]} 14. Qh5+ {[%clk 0:02:30]}  Kg8 {[%clk 0:02:53]} 15. Ne4 {[%clk 0:02:31]}  Qc4 {[%clk 0:02:53]} 16. Ng5 {[%clk 0:02:13]}  Qd3 {[%clk 0:02:37]} 17. e4 {[%clk 0:02:11]}  Rfc8 {[%clk 0:02:25]} 18. Qxf7+ {[%clk 0:01:43]}  Kh8 {[%clk 0:02:24]} 19. Qh5+ {[%clk 0:01:44]}  Kg8 {[%clk 0:02:23]} 20. Rd1 {[%clk 0:01:30]}  Qb5 {[%clk 0:02:19]} 21. Qf7+ {[%clk 0:01:15]}  Kh8 {[%clk 0:02:19]} 22. Qh5+ {[%clk 0:01:12]}  Kg8 {[%clk 0:02:19]} 23. Qf7+ {[%clk 0:01:13]}  Kh8 {[%clk 0:02:19]} 24. Qxd7 {[%clk 0:01:14]}  dxe4 {[%clk 0:02:17]} 25. h4 {[%clk 0:00:49]}  Rd8 {[%clk 0:02:13]} 26. Nf7+ {[%clk 0:00:43]}  Kh7 {[%clk 0:02:12]} 27. Nxd8 {[%clk 0:00:31]}  Rxd8 {[%clk 0:02:11]} 28. Qxe6 {[%clk 0:00:30]}  Rxd1+ {[%clk 0:02:10]} 29. Kxd1 {[%clk 0:00:31]}  Qxb2 {[%clk 0:02:03]} 30. Qxe4+ {[%clk 0:00:29]}  Kh8 {[%clk 0:02:04]} 31. Rh3 {[%clk 0:00:22]}  Qxa2 {[%clk 0:01:57]} 32. Rf3 {[%clk 0:00:17]}  Qa1+ {[%clk 0:01:45]} 33. Kd2 {[%clk 0:00:17]}  Qa2+ {[%clk 0:01:35]} 34. Qc2 {[%clk 0:00:15]}  Qd5+ {[%clk 0:01:35]} 35. Ke1 {[%clk 0:00:10]}  Kg8 {[%clk 0:01:27]} 36. Kf1 {[%clk 0:00:09]}  Ne5 {[%clk 0:01:27]} 37. Re3 {[%clk 0:00:07]}  Ng4 {[%clk 0:01:22]} 38. Re8+ {[%clk 0:00:05]}  Kf7 {[%clk 0:01:22]} 39. Re4 {[%clk 0:00:02]}  Nf6 {[%clk 0:01:21]} 40. Re3 {[%clk 0:00:02]}  Qc4+ {[%clk 0:01:20]} 41. Qd3 {[%clk 0:00:02]}  Qxh4 {[%clk 0:01:19]} 42. g3 {[%clk 0:00:02]}  Qh1+ {[%clk 0:01:16]} 43. Ke2 {[%clk 0:00:02]}  Qh5+ {[%clk 0:01:16]} 44. Kd2 {[%clk 0:00:02]}  Qh2 {[%clk 0:01:13]} 45. Qc4+ {[%clk 0:00:02]}  Kg6 {[%clk 0:01:12]} 46. Qd3+ {[%clk 0:00:02]}  Kf7 {[%clk 0:01:12]} 47. Rf3 {[%clk 0:00:03]}  Qh1 {[%clk 0:01:07]} 48. Ke2 {[%clk 0:00:02]}  Qh5 {[%clk 0:01:03]} 49. Qc4+ {[%clk 0:00:01]}  Kf8 {[%clk 0:01:02]} 50. Qc8+ {[%clk 0:00:01]}  Kf7 {[%clk 0:01:02]} 51. Qxb7+ {[%clk 0:00:01]}  Kg6 {[%clk 0:01:03]} 52. Ke3 {[%clk 0:00:01]}  Qc5+ {[%clk 0:00:31]} 53. Ke2 {[%clk 0:00:01]}  Qc4+ {[%clk 0:00:32]} 54. Ke1 {[%clk 0:00:01]}  a5 {[%clk 0:00:25]} 55. Re3 {[%clk 0:00:01]}  a4 {[%clk 0:00:20]} 56. Qb1+ {[%clk 0:00:02]}  Kf7 {[%clk 0:00:18]} 57. Qd3 {[%clk 0:00:03]}  Qb3 {[%clk 0:00:17]} 58. Kf1 {[%clk 0:00:03]}  a3 {[%clk 0:00:17]} 59. Qa6 {[%clk 0:00:03]}  Ng4 {[%clk 0:00:13]} 60. Rf3+ {[%clk 0:00:03]}  Kg8 {[%clk 0:00:12]} 61. Qa8+ {[%clk 0:00:03]}  Kh7 {[%clk 0:00:12]} 62. Qe4+ {[%clk 0:00:03]}  Kg8 {[%clk 0:00:12]} 63. Qxg4 {[%clk 0:00:03]}  a2 {[%clk 0:00:12]} 64. Qc8+ {[%clk 0:00:04]}  Kh7 {[%clk 0:00:12]} 65. Qh3+ {[%clk 0:00:02]}  Kg8 {[%clk 0:00:11]} 66. Qc8+ {[%clk 0:00:03]}  Kh7 {[%clk 0:00:11]} 67. Qf5+ {[%clk 0:00:03]}  Kg8 {[%clk 0:00:10]} 68. Qf8+ {[%clk 0:00:03]}  Kh7 {[%clk 0:00:10]} 69. Qf5+ {[%clk 0:00:03]}  Kg8 {[%clk 0:00:10]} 70. Qc8+ {[%clk 0:00:03]} 1/2-1/2


[Site "https://www.chess.com"]

[Event "Titled Tuesday Blitz February 28 Late 2023"]
[White "Koc, Przemyslaw"]
[Black "Senft, Sean"]
[WhiteFideId "1109081"]
[BlackFideId "2044960"]
[WhiteElo "2161"]
[BlackElo "1989"]
[Result "1-0"]
[Round "05"]
[TimeControl "180+2"]
[Date "2023.02.28"]
[WhiteClock "0:01:19"]
[BlackClock "0:00:12"]

1. Nf3 {[%clk 0:03:00]}  d5 {[%clk 0:02:50]} 2. d4 {[%clk 0:03:00]}  Nf6 {[%clk 0:02:49]} 3. e3 {[%clk 0:03:00]}  c6 {[%clk 0:02:46]} 4. b3 {[%clk 0:02:58]}  Bf5 {[%clk 0:02:38]} 5. Bb2 {[%clk 0:02:57]}  e6 {[%clk 0:02:39]} 6. Nh4 {[%clk 0:02:56]}  Be4 {[%clk 0:02:38]} 7. f3 {[%clk 0:02:53]}  Bg6 {[%clk 0:02:38]} 8. g3 {[%clk 0:02:49]}  Bd6 {[%clk 0:02:20]} 9. Bg2 {[%clk 0:02:46]}  Nbd7 {[%clk 0:02:18]} 10. O-O {[%clk 0:02:41]}  Qc7 {[%clk 0:02:14]} 11. c4 {[%clk 0:02:37]}  Bxb1 {[%clk 0:01:44]} 12. Rxb1 {[%clk 0:02:37]}  g5 {[%clk 0:01:43]} 13. e4 {[%clk 0:02:37]}  gxh4 {[%clk 0:01:23]} 14. e5 {[%clk 0:02:37]}  hxg3 {[%clk 0:01:23]} 15. hxg3 {[%clk 0:02:37]}  Nxe5 {[%clk 0:01:22]} 16. dxe5 {[%clk 0:02:37]}  Bxe5 {[%clk 0:01:23]} 17. Bxe5 {[%clk 0:02:36]}  Qxe5 {[%clk 0:01:23]} 18. f4 {[%clk 0:02:23]}  Qh5 {[%clk 0:01:18]} 19. Qxh5 {[%clk 0:02:07]}  Nxh5 {[%clk 0:01:18]} 20. g4 {[%clk 0:02:03]}  Nf6 {[%clk 0:01:17]} 21. g5 {[%clk 0:02:03]}  Ne4 {[%clk 0:01:09]} 22. Bxe4 {[%clk 0:02:02]}  dxe4 {[%clk 0:01:10]} 23. Kf2 {[%clk 0:01:53]}  O-O-O {[%clk 0:01:04]} 24. Rbd1 {[%clk 0:01:50]}  Rxd1 {[%clk 0:00:40]} 25. Rxd1 {[%clk 0:01:49]}  h6 {[%clk 0:00:26]} 26. Rh1 {[%clk 0:01:49]}  h5 {[%clk 0:00:25]} 27. Ke3 {[%clk 0:01:49]}  h4 {[%clk 0:00:20]} 28. Rh3 {[%clk 0:01:49]}  Kd7 {[%clk 0:00:20]} 29. Kxe4 {[%clk 0:01:49]}  Kd6 {[%clk 0:00:19]} 30. b4 {[%clk 0:01:44]}  b6 {[%clk 0:00:19]} 31. a4 {[%clk 0:01:43]}  a5 {[%clk 0:00:19]} 32. c5+ {[%clk 0:01:42]}  bxc5 {[%clk 0:00:17]} 33. bxa5 {[%clk 0:01:40]}  Kc7 {[%clk 0:00:18]} 34. Ke5 {[%clk 0:01:40]}  Kd7 {[%clk 0:00:16]} 35. Kf6 {[%clk 0:01:38]}  c4 {[%clk 0:00:15]} 36. Kxf7 {[%clk 0:01:36]}  c3 {[%clk 0:00:16]} 37. Rxc3 {[%clk 0:01:36]}  h3 {[%clk 0:00:16]} 38. Rc1 {[%clk 0:01:37]}  h2 {[%clk 0:00:15]} 39. Rh1 {[%clk 0:01:37]}  c5 {[%clk 0:00:14]} 40. g6 {[%clk 0:01:34]}  Rh4 {[%clk 0:00:14]} 41. f5 {[%clk 0:01:31]}  exf5 {[%clk 0:00:12]} 42. g7 {[%clk 0:01:32]}  Rg4 {[%clk 0:00:13]} 43. Rxh2 {[%clk 0:01:28]}  f4 {[%clk 0:00:12]} 44. Rf2 {[%clk 0:01:22]}  Kd6 {[%clk 0:00:12]} 45. a6 {[%clk 0:01:19]} 1-0


[Site "https://www.chess.com"]

[Event "Titled Tuesday Blitz February 28 Late 2023"]
[White "Mendez Fortes, Eduardo Jesus"]
[Black "Dahlgren, James Allen"]
[WhiteFideId "3502376"]
[BlackFideId "22256873"]
[WhiteElo "2307"]
[BlackElo "2192"]
[Result "1-0"]
[Round "05"]
[TimeControl "180+2"]
[Date "2023.02.28"]
[WhiteClock "0:02:22"]
[BlackClock "0:00:47"]

1. e4 {[%clk 0:03:00]}  e6 {[%clk 0:02:59]} 2. d4 {[%clk 0:03:00]}  c5 {[%clk 0:02:59]} 3. Nd2 {[%clk 0:03:01]}  cxd4 {[%clk 0:02:59]} 4. Ngf3 {[%clk 0:03:01]}  Nc6 {[%clk 0:02:58]} 5. Nb3 {[%clk 0:03:00]}  e5 {[%clk 0:02:58]} 6. c3 {[%clk 0:03:00]}  dxc3 {[%clk 0:02:58]} 7. bxc3 {[%clk 0:03:01]}  Nf6 {[%clk 0:02:55]} 8. Bc4 {[%clk 0:02:59]}  Be7 {[%clk 0:02:53]} 9. O-O {[%clk 0:02:57]}  O-O {[%clk 0:02:53]} 10. Re1 {[%clk 0:02:57]}  h6 {[%clk 0:02:49]} 11. h3 {[%clk 0:02:52]}  a6 {[%clk 0:02:48]} 12. a4 {[%clk 0:02:51]}  d6 {[%clk 0:02:46]} 13. a5 {[%clk 0:02:48]}  Be6 {[%clk 0:02:45]} 14. Bxe6 {[%clk 0:02:48]}  fxe6 {[%clk 0:02:46]} 15. Be3 {[%clk 0:02:47]}  Qd7 {[%clk 0:02:27]} 16. Nbd2 {[%clk 0:02:45]}  d5 {[%clk 0:02:25]} 17. Bb6 {[%clk 0:02:42]}  d4 {[%clk 0:01:58]} 18. Nc4 {[%clk 0:02:38]}  dxc3 {[%clk 0:01:51]} 19. Qc2 {[%clk 0:02:29]}  Nd4 {[%clk 0:01:37]} 20. Qxc3 {[%clk 0:02:29]}  Rac8 {[%clk 0:01:26]} 21. Nfxe5 {[%clk 0:02:26]}  Qb5 {[%clk 0:01:05]} 22. Qxd4 {[%clk 0:02:25]}  Bb4 {[%clk 0:00:55]} 23. Reb1 {[%clk 0:02:24]}  Rfd8 {[%clk 0:00:46]} 24. Bxd8 {[%clk 0:02:23]}  Rxd8 {[%clk 0:00:47]} 25. Qxd8+ {[%clk 0:02:22]} 1-0


[Site "https://www.chess.com"]

[Event "Titled Tuesday Blitz February 28 Late 2023"]
[White "Martic, Ivan"]
[Black "Matsuura, Frederico"]
[WhiteFideId "929301"]
[BlackFideId "2107848"]
[WhiteElo "2360"]
[BlackElo "2302"]
[Result "1-0"]
[Round "05"]
[TimeControl "180+2"]
[Date "2023.02.28"]
[WhiteClock "0:01:03"]
[BlackClock "0:00:13"]

1. e4 {[%clk 0:02:57]}  e6 {[%clk 0:02:58]} 2. d4 {[%clk 0:02:56]}  d5 {[%clk 0:02:58]} 3. e5 {[%clk 0:02:56]}  c5 {[%clk 0:02:58]} 4. c3 {[%clk 0:02:57]}  Nc6 {[%clk 0:02:59]} 5. Nf3 {[%clk 0:02:57]}  Qb6 {[%clk 0:02:59]} 6. a3 {[%clk 0:02:58]}  c4 {[%clk 0:02:59]} 7. Nbd2 {[%clk 0:02:57]}  Na5 {[%clk 0:02:58]} 8. h4 {[%clk 0:02:57]}  Bd7 {[%clk 0:02:57]} 9. Qc2 {[%clk 0:02:55]}  Qc6 {[%clk 0:02:41]} 10. g3 {[%clk 0:02:48]}  h6 {[%clk 0:02:38]} 11. h5 {[%clk 0:02:44]}  Ne7 {[%clk 0:02:24]} 12. Bh3 {[%clk 0:02:42]}  Qa4 {[%clk 0:02:23]} 13. Qb1 {[%clk 0:02:38]}  Nb3 {[%clk 0:02:11]} 14. Nxb3 {[%clk 0:02:37]}  Qxb3 {[%clk 0:02:12]} 15. O-O {[%clk 0:02:33]}  Ba4 {[%clk 0:02:11]} 16. Bf4 {[%clk 0:02:25]}  Qc2 {[%clk 0:02:06]} 17. Qc1 {[%clk 0:02:06]}  Nc6 {[%clk 0:01:55]} 18. Ne1 {[%clk 0:02:02]}  Qh7 {[%clk 0:01:47]} 19. Qe3 {[%clk 0:01:58]}  Na5 {[%clk 0:01:43]} 20. g4 {[%clk 0:01:57]}  Be7 {[%clk 0:01:41]} 21. Bg3 {[%clk 0:01:52]}  Nb3 {[%clk 0:01:28]} 22. Rd1 {[%clk 0:01:52]}  Nc5 {[%clk 0:01:24]} 23. Rd2 {[%clk 0:01:47]}  Ne4 {[%clk 0:01:23]} 24. Re2 {[%clk 0:01:47]}  Bd1 {[%clk 0:01:19]} 25. Bh2 {[%clk 0:01:37]}  g6 {[%clk 0:00:44]} 26. Rd2 {[%clk 0:01:25]}  Nxd2 {[%clk 0:00:39]} 27. Qxd2 {[%clk 0:01:26]}  Ba4 {[%clk 0:00:36]} 28. Bg2 {[%clk 0:01:15]}  gxh5 {[%clk 0:00:34]} 29. gxh5 {[%clk 0:01:16]}  Rg8 {[%clk 0:00:33]} 30. Kh1 {[%clk 0:01:16]}  O-O-O {[%clk 0:00:31]} 31. Qe2 {[%clk 0:01:13]}  Rg7 {[%clk 0:00:27]} 32. f4 {[%clk 0:01:11]}  Rdg8 {[%clk 0:00:25]} 33. f5 {[%clk 0:01:09]}  exf5 {[%clk 0:00:15]} 34. Bxd5 {[%clk 0:01:08]}  Kb8 {[%clk 0:00:14]} 35. e6+ {[%clk 0:01:06]}  Ka8 {[%clk 0:00:14]} 36. exf7 {[%clk 0:01:06]}  Rd8 {[%clk 0:00:13]} 37. Qxe7 {[%clk 0:01:03]} 1-0


[Site "https://www.chess.com"]

[Event "Titled Tuesday Blitz February 28 Late 2023"]
[White "Aguilar, Juan"]
[Black "Martynov, Pavel"]
[WhiteFideId "3800091"]
[BlackFideId "4101260"]
[WhiteElo "2407"]
[BlackElo "2314"]
[Result "0-1"]
[Round "05"]
[TimeControl "180+2"]
[Date "2023.02.28"]
[WhiteClock "0:01:04"]
[BlackClock "0:02:20"]

1. Nf3 {[%clk 0:03:00]}  d5 {[%clk 0:02:59]} 2. g3 {[%clk 0:03:00]}  e6 {[%clk 0:03:00]} 3. Bg2 {[%clk 0:03:00]}  c5 {[%clk 0:03:00]} 4. O-O {[%clk 0:03:01]}  Nc6 {[%clk 0:03:01]} 5. d3 {[%clk 0:03:01]}  Nf6 {[%clk 0:03:01]} 6. Nbd2 {[%clk 0:03:02]}  Be7 {[%clk 0:03:01]} 7. e4 {[%clk 0:03:02]}  d4 {[%clk 0:02:59]} 8. Nc4 {[%clk 0:02:18]}  b5 {[%clk 0:02:55]} 9. Nce5 {[%clk 0:02:17]}  Bb7 {[%clk 0:02:53]} 10. Nxc6 {[%clk 0:02:15]}  Bxc6 {[%clk 0:02:53]} 11. Ne5 {[%clk 0:02:16]}  Bb7 {[%clk 0:02:50]} 12. f4 {[%clk 0:02:16]}  Qc7 {[%clk 0:02:47]} 13. g4 {[%clk 0:01:55]}  h5 {[%clk 0:02:39]} 14. g5 {[%clk 0:01:54]}  Ng4 {[%clk 0:02:32]} 15. Nxg4 {[%clk 0:01:44]}  hxg4 {[%clk 0:02:33]} 16. Qxg4 {[%clk 0:01:44]}  O-O-O {[%clk 0:02:34]} 17. f5 {[%clk 0:01:37]}  Qxh2+ {[%clk 0:02:31]} 18. Kf2 {[%clk 0:01:37]}  Rh4 {[%clk 0:02:27]} 19. Qg3 {[%clk 0:01:35]}  exf5 {[%clk 0:02:25]} 20. exf5 {[%clk 0:01:22]}  Bd6 {[%clk 0:02:21]} 21. Qxh2 {[%clk 0:01:09]}  Rxh2 {[%clk 0:02:22]} 22. Rg1 {[%clk 0:01:08]}  Re8 {[%clk 0:02:22]} 23. Bd2 {[%clk 0:01:04]}  Re5 {[%clk 0:02:20]} 0-1


[Site "https://www.chess.com"]